fUSD/lending_fUSD_20250206
["ID","MTS","AMOUNT","RATE_DAILY","PERIOD"]
[351957881,1738861842996,-500.0,0.00017258,2]
[351957883,1738861843005,-910.94,0.00017258,2]
[351957885,1738861843015,-500.0,0.00017258,2]
[351957886,1738861843026,-500.0,0.00017258,2]
[351957888,1738861843035,-500.0,0.00017258,2]
[351957890,1738861843045,-589.83,0.00017258,2]
[351957892,1738861843054,-500.0,0.00017258,2]
[351957894,1738861843063,-500.0,0.00017258,2]
[351957896,1738861843073,-500.0,0.00017258,2]
[351957898,1738861843083,-785.95,0.00017258,2]
[351957900,1738861843092,-812.17,0.00017258,2]
[351957902,1738861843101,-500.0,0.00017258,2]
[351957903,1738861843110,-500.0,0.00017258,2]
[351957905,1738861843121,-500.0,0.00017258,2]
[351957907,1738861843130,-970.04,0.00017258,2]
[351957909,1738861843140,-456.1370444,0.00017258,2]
[351957911,1738861843149,-500.0,0.00017258,2]
[351957913,1738861843159,-500.0,0.00017258,2]
[351957915,1738861843168,-550.87,0.00017258,2]
[351957917,1738861843177,-500.0,0.00017258,2]
[351957919,1738861843187,-500.0,0.00017258,2]
[351957921,1738861843196,-500.0,0.00017258,2]
[351957922,1738861843205,-622.89,0.00017258,2]
[351957924,1738861843215,-500.0,0.00017258,2]
[351957926,1738861843224,-940.72,0.00017258,2]
[351957928,1738861843233,-500.0,0.00017258,2]
[351957931,1738861843242,-527.23,0.00017258,2]
[351957933,1738861843252,-687.44,0.00017258,2]
[351957937,1738861843264,-500.0,0.00017258,2]
[351957939,1738861843275,-865.53,0.00017258,2]
[351957941,1738861843284,-268.25815436,0.00017258,2]
[351957944,1738861843294,-646.69,0.00017258,2]
[351957947,1738861843303,-500.0,0.00017258,2]
[351957949,1738861843312,-500.0,0.00017258,2]
[351957951,1738861843322,-500.0,0.00017258,2]
[351957953,1738861843331,-1138.12,0.00017258,2]
[351957954,1738861843341,-500.0,0.00017258,2]
[351957956,1738861843350,-1066.17,0.00017258,2]
[351957958,1738861843359,-500.0,0.00017258,2]
[351957960,1738861843369,-500.0,0.00017258,2]
[351957962,1738861843379,-500.0,0.00017258,2]
[351957964,1738861843388,-500.0,0.00017258,2]
[351957966,1738861843398,-1133.21,0.00017258,2]
[351957968,1738861843407,-292.48887238,0.00017258,2]
[351957970,1738861843416,-430.76857531,0.00017258,2]
[351957972,1738861843425,-1379.38,0.00017258,2]
[351957974,1738861843435,-500.0,0.00017258,2]
[351957976,1738861843444,-487.51168843,0.00017258,2]
[351957978,1738861843453,-1088.33,0.00017258,2]
[351957980,1738861843462,-500.0,0.00017258,2]
[351957982,1738861843471,-2580.85,0.00017258,2]
[351957984,1738861843481,-500.0,0.00017258,2]
[351957986,1738861843490,-507.71,0.00017258,2]
[351957988,1738861843499,-570.24,0.00017258,2]
[351957990,1738861843509,-500.0,0.00017258,2]
[351957992,1738861843518,-829.91,0.00017258,2]
[351957994,1738861843527,-500.0,0.00017258,2]
[351957996,1738861843537,-500.0,0.00017258,2]
[351957997,1738861843546,-501.42,0.00017258,2]
[351957999,1738861843555,-1418.09,0.00017258,2]
[351958001,1738861843564,-699.42,0.00017258,2]
[351958003,1738861843573,-500.0,0.00017258,2]
[351958005,1738861843582,-500.0,0.00017258,2]
[351958007,1738861843591,-1474.87,0.00017258,2]
[351958009,1738861843601,-953.52,0.00017258,2]
[351958011,1738861843610,-500.0,0.00017258,2]
[351958012,1738861843621,-500.0,0.00017258,2]
[351958013,1738861843630,-902.61,0.00017258,2]
[351958014,1738861843640,-500.0,0.00017258,2]
[351958015,1738861843650,-500.0,0.00017258,2]
[351958016,1738861843659,-500.0,0.00017258,2]
[351958017,1738861843671,-1661.17,0.00017258,2]
[351958018,1738861843680,-1847.77,0.00017258,2]
[351958019,1738861843690,-500.0,0.00017258,2]
[351958020,1738861843700,-1733.71,0.00017258,2]
[351958021,1738861843709,-625.07,0.00017258,2]
[351958022,1738861843719,-667.58,0.00017258,2]
[351958023,1738861843728,-1416.66,0.00017258,2]
[351958024,1738861843738,-500.0,0.00017258,2]
[351958025,1738861843747,-500.0,0.00017258,2]
[351958026,1738861843757,-1420.72,0.00017258,2]
[351958027,1738861843766,-1568.96,0.00017258,2]
[351958028,1738861843776,-672.97,0.00017258,2]
[351958029,1738861843792,-843.46,0.00017258,2]
[351958030,1738861843805,-1370.61,0.00017258,2]
[351958031,1738861843815,-500.0,0.00017258,2]
[351958033,1738861843826,-500.0,0.00017258,2]
[351958035,1738861843835,-500.0,0.00017258,2]
[351958036,1738861843844,-500.0,0.00017258,2]
[351958038,1738861843853,-753.37,0.00017258,2]
[351958040,1738861843863,-1322.14,0.00017258,2]
[351958042,1738861843873,-2840.59,0.00017258,2]
[351958044,1738861843882,-500.0,0.00017258,2]
[351958046,1738861843892,-521.51,0.00017258,2]
[351958048,1738861843901,-500.0,0.00017258,2]
[351958050,1738861843910,-3947.98,0.00017258,2]
[351958052,1738861843920,-417.78990335,0.00017258,2]
[351958054,1738861843928,-1271.81,0.00017258,2]
[351958056,1738861843938,-708.72,0.00017258,2]
[351958058,1738861843947,-791.7,0.00017258,2]
[351958060,1738861843956,-500.0,0.00017258,2]
[351958062,1738861843967,-375.4290129,0.00017258,2]
[351958065,1738861843978,-1069.89,0.00017258,2]
[351958067,1738861843987,-1042.41,0.00017258,2]
[351958069,1738861843997,-957.73,0.00017258,2]
[351958071,1738861844006,-1606.61,0.00017258,2]
[351958072,1738861844015,-1571.35,0.00017258,2]
[351958075,1738861844025,-500.0,0.00017258,2]
[351958076,1738861844034,-519.25,0.00017258,2]
[351958078,1738861844044,-500.0,0.00017258,2]
[351958080,1738861844053,-1542.73,0.00017258,2]
[351958083,1738861844063,-692.64,0.00017258,2]
[351958085,1738861844072,-657.02,0.00017258,2]
[351958086,1738861844084,-584.58,0.00017258,2]
[351958089,1738861844094,-500.0,0.00017258,2]
[351958091,1738861844103,-1586.74,0.00017258,2]
[351958092,1738861844112,-578.78,0.00017258,2]
[351958094,1738861844123,-1730.87,0.00017258,2]
[351958096,1738861844132,-500.0,0.00017258,2]
[351958098,1738861844142,-681.25,0.00017258,2]
[351958100,1738861844151,-500.0,0.00017258,2]
[351958102,1738861844160,-500.0,0.00017258,2]
[351958104,1738861844170,-682.56,0.00017258,2]
[351958106,1738861844180,-500.0,0.00017258,2]
[351958108,1738861844190,-1123.68,0.00017258,2]
[351958110,1738861844199,-500.0,0.00017258,2]
[351958112,1738861844208,-500.0,0.00017258,2]
[351958114,1738861844217,-500.0,0.00017258,2]
[351958116,1738861844227,-839.75,0.00017258,2]
[351958118,1738861844236,-1377.35,0.00017258,2]
[351958120,1738861844245,-1194.33,0.00017258,2]
[351958122,1738861844254,-500.0,0.00017258,2]
[351958124,1738861844266,-742.25,0.00017258,2]
[351958126,1738861844277,-528.18,0.00017258,2]
[351958129,1738861844287,-2239.71,0.00017258,2]
[351958131,1738861844297,-729.85,0.00017258,2]
[351958133,1738861844308,-500.0,0.00017258,2]
[351958135,1738861844317,-1212.61,0.00017258,2]
[351958136,1738861844327,-500.0,0.00017258,2]
[351958138,1738861844337,-514.18,0.00017258,2]
[351958140,1738861844348,-689.8,0.00017258,2]
[351958142,1738861844357,-500.0,0.00017258,2]
[351958144,1738861844367,-533.13,0.00017258,2]
[351958146,1738861844377,-500.0,0.00017258,2]
[351958148,1738861844387,-929.26,0.00017258,2]
[351958150,1738861844397,-738.95,0.00017258,2]
[351958152,1738861844407,-539.89,0.00017258,2]
[351958154,1738861844417,-500.0,0.00017258,2]
[351958156,1738861844426,-654.59,0.00017258,2]
[351958158,1738861844435,-766.1,0.00017258,2]
[351958160,1738861844444,-1727.76,0.00017258,2]
[351958162,1738861844454,-605.86,0.00017258,2]
[351958164,1738861844463,-2394.19,0.00017258,2]
[351958166,1738861844473,-500.0,0.00017258,2]
[351958168,1738861844482,-651.71,0.00017258,2]
[351958170,1738861844491,-500.0,0.00017258,2]
[351958172,1738861844500,-500.0,0.00017258,2]
[351958174,1738861844510,-1000.0,0.00017258,2]
[351958176,1738861844519,-500.0,0.00017258,2]
[351958177,1738861844528,-1210.31,0.00017258,2]
[351958179,1738861844537,-500.0,0.00017258,2]
[351958181,1738861844547,-721.6,0.00017258,2]
[351958182,1738861844556,-504.71,0.00017258,2]
[351958183,1738861844565,-500.0,0.00017258,2]
[351958184,1738861844575,-1238.99,0.00017258,2]
[351958185,1738861844585,-500.0,0.00017258,2]
[351958186,1738861844595,-862.22,0.00017258,2]
[351958187,1738861844604,-500.0,0.00017258,2]
[351958188,1738861844614,-500.0,0.00017258,2]
[351958189,1738861844623,-366.82097488,0.00017258,2]
[351958190,1738861844633,-500.0,0.00017258,2]
[351958191,1738861844642,-523.8693422,0.00017258,2]
[351958192,1738861844652,-500.0,0.00017258,2]
[351958194,1738861844661,-500.0,0.00017258,2]
[351958196,1738861844670,-500.0,0.00017258,2]
[351958197,1738861844679,-308.32590301,0.00017258,2]
[351958198,1738861844689,-309.0527092,0.00017258,2]
[351958199,1738861844698,-646.48,0.00017259,2]
[351958200,1738861844708,-882.64,0.00017259,2]
[351958201,1738861844717,-500.0,0.00017259,2]
[351958202,1738861844727,-1322.52,0.00017259,2]
[351958203,1738861844736,-500.0,0.00017259,2]
[351958204,1738861844746,-860.43,0.00017259,2]
[351958205,1738861844755,-618.33,0.00017259,2]
[351958206,1738861844765,-882.18,0.00017259,2]
[351958207,1738861844775,-500.0,0.00017259,2]
[351958208,1738861844784,-1093.09,0.00017259,2]
[351958209,1738861844798,-801.19,0.00017259,2]
[351958210,1738861844808,-735.64,0.00017259,2]
[351958211,1738861844825,-773.55,0.00017259,2]
[351958212,1738861844834,-512.91,0.00017259,2]
[351958213,1738861844844,-550.45,0.00017259,2]
[351958214,1738861844853,-647.51,0.00017259,2]
[351958215,1738861844862,-612.38,0.00017259,2]
[351958217,1738861844872,-500.0,0.00017259,2]
[351958219,1738861844881,-980.57,0.00017259,2]
[351958221,1738861844890,-515.98,0.00017259,2]
[351958223,1738861844900,-795.41,0.00017259,2]
[351958225,1738861844910,-500.0,0.00017259,2]
[351958227,1738861844919,-1166.1,0.00017259,2]
[351958229,1738861844928,-500.0,0.00017259,2]
[351958231,1738861844938,-841.63,0.00017259,2]
[351958233,1738861844947,-564.64,0.00017259,2]
[351958235,1738861844956,-842.75,0.00017259,2]
[351958237,1738861844967,-549.06,0.00017259,2]
[351958239,1738861844976,-500.0,0.00017259,2]
[351958241,1738861844986,-838.7,0.00017259,2]
[351958242,1738861844995,-871.1,0.00017259,2]
[351958245,1738861845005,-500.0,0.00017259,2]
[351958247,1738861845016,-500.0,0.00017259,2]
[351958249,1738861845025,-549.37,0.00017259,2]
[351958251,1738861845034,-888.81,0.00017259,2]
[351958253,1738861845043,-635.82,0.00017259,2]
[351958255,1738861845052,-500.0,0.00017259,2]
[351958256,1738861845062,-758.24,0.00017259,2]
[351958258,1738861845072,-887.86,0.00017259,2]
[351958260,1738861845081,-751.66,0.00017259,2]
[351958262,1738861845090,-817.88,0.00017259,2]
[351958264,1738861845100,-572.42,0.00017259,2]
[351958266,1738861845109,-500.0,0.00017259,2]
[351958268,1738861845120,-754.86,0.00017259,2]
[351958271,1738861845129,-678.78,0.00017259,2]
[351958272,1738861845138,-661.11,0.00017259,2]
[351958275,1738861845148,-500.0,0.00017259,2]
[351958277,1738861845158,-500.0,0.00017259,2]
[351958279,1738861845167,-500.0,0.00017259,2]
[351958281,1738861845176,-223.68,0.00017259,2]
[351958283,1738861845186,-500.0,0.00017259,2]
[351958285,1738861845195,-500.0,0.00017259,2]
[351958287,1738861845205,-500.0,0.00017259,2]
[351958289,1738861845214,-500.0,0.00017259,2]
[351958291,1738861845224,-500.0,0.00017259,2]
[351958293,1738861845234,-505.27,0.00017259,2]
[351958295,1738861845243,-500.0,0.00017259,2]
[351958297,1738861845252,-500.0,0.00017259,2]
[351958299,1738861845263,-500.0,0.00017259,2]
[351958301,1738861845277,-500.0,0.00017259,2]
[351958304,1738861845286,-500.0,0.00017259,2]
[351958307,1738861845295,-542.84,0.00017259,2]
[351958310,1738861845304,-500.0,0.00017259,2]
[351958313,1738861845315,-568.48,0.00017259,2]
[351958315,1738861845324,-500.0,0.00017259,2]
[351958317,1738861845333,-810.69,0.00017259,2]
[351958319,1738861845343,-500.0,0.00017259,2]
[351958341,1738861845541,-500.0,0.00017273,2]
[351958343,1738861845551,-205.0,0.0001729,2]
[351958345,1738861845560,-153.60690227,0.00017295,2]
[351958347,1738861845569,-150.0,0.00017334,2]
[351958349,1738861845579,-150.0,0.00017334,2]
[351958351,1738861845588,-242.34271475,0.00017334,2]
[351958353,1738861845597,-150.0,0.00017334,2]
[351958355,1738861845607,-501.4139238,0.00017373,2]
[351958357,1738861845617,-261.31452227,0.00017373,2]
[351958359,1738861845627,-211.58667195,0.00017373,2]
[351958361,1738861845637,-275.17968005,0.00017394,2]
[351958363,1738861845646,-350213.52940881,0.00017394,2]
[351958365,1738861845655,-677.64,0.00017394,2]
[351958367,1738861845665,-2320.36,0.00017394,2]
[351958368,1738861845675,-1057.3,0.00017394,2]
[351958370,1738861845684,-1390.44,0.00017394,2]
[351958372,1738861845693,-702.27,0.00017394,2]
[351958374,1738861845702,-1330.76,0.00017394,2]
[351958376,1738861845712,-1549.77,0.00017394,2]
[351958378,1738861845722,-1149.66,0.00017394,2]
[351958380,1738861845731,-500.0,0.00017394,2]
[351958382,1738861845741,-1130.88,0.00017394,2]
[351958384,1738861845750,-158.016599,0.00017394,2]
[351958386,1738861845760,-1058.42,0.00017394,2]
[351958388,1738861845770,-591.92,0.00017394,2]
[351958390,1738861845780,-919.01,0.00017394,2]
[351958392,1738861845789,-1259.14,0.00017394,2]
[351958394,1738861845799,-2902.47,0.00017394,2]
[351958396,1738861845808,-1080.79,0.00017394,2]
[351958398,1738861845818,-1591.11,0.00017394,2]
[351958400,1738861845827,-1302.97,0.00017394,2]
[351958402,1738861845836,-1528.37,0.00017394,2]
[351958404,1738861845846,-1378.0,0.00017394,2]
[351958405,1738861845856,-1928.71,0.00017394,2]
[351958406,1738861845866,-1701.03,0.00017394,2]
[351958407,1738861845877,-1215.91,0.00017394,2]
[351958408,1738861845887,-1505.03,0.00017394,2]
[351958409,1738861845896,-1895.7,0.00017394,2]
[351958410,1738861845905,-3013.77,0.00017394,2]
[351958411,1738861845914,-936.5,0.00017394,2]
[351958412,1738861845923,-1793.39,0.00017394,2]
[351958413,1738861845933,-1477.06,0.00017394,2]
[351958414,1738861845943,-1577.4,0.00017394,2]
[351958415,1738861845953,-5300.74,0.00017394,2]
[351958416,1738861845963,-1169.73,0.00017394,2]
[351958417,1738861845972,-2574.15,0.00017394,2]
[351958418,1738861845982,-2515.4,0.00017394,2]
[351958419,1738861845992,-2027.32,0.00017394,2]
[351958420,1738861846002,-2110.85,0.00017394,2]
[351958421,1738861846014,-1476.55,0.00017394,2]
[351958422,1738861846024,-1529.46,0.00017394,2]
[351958423,1738861846034,-2849.47,0.00017394,2]
[351958424,1738861846043,-1830.91,0.00017394,2]
[351958425,1738861846053,-3547.39,0.00017394,2]
[351958426,1738861846063,-1971.2,0.00017394,2]
[351958427,1738861846072,-500.0,0.00017394,2]
[351958428,1738861846082,-1234.07,0.00017394,2]
[351958429,1738861846092,-500.0,0.00017394,2]
[351958430,1738861846102,-1544.59,0.00017394,2]
[351958431,1738861846111,-1656.43,0.00017394,2]
[351958432,1738861846121,-1394.51,0.00017394,2]
[351958433,1738861846131,-3743.69,0.00017394,2]
[351958434,1738861846141,-500.0,0.00017394,2]
[351958435,1738861846151,-963.12,0.00017394,2]
[351958436,1738861846160,-1700.26,0.00017394,2]
[351958438,1738861846170,-1311.59,0.00017394,2]
[351958440,1738861846180,-1736.78,0.00017394,2]
[351958442,1738861846189,-1017.17,0.00017394,2]
[351958444,1738861846199,-1533.47,0.00017394,2]
[351958446,1738861846209,-576.03,0.00017395,2]
[351958448,1738861846218,-568.39,0.00017395,2]
[351958450,1738861846228,-500.0,0.00017395,2]
[351958452,1738861846237,-1104.41,0.00017395,2]
[351958454,1738861846247,-1065.42,0.00017395,2]
[351958456,1738861846256,-689.15,0.00017395,2]
[351958458,1738861846266,-500.0,0.00017395,2]
[351958460,1738861846278,-500.0,0.00017395,2]
[351958462,1738861846287,-500.0,0.00017395,2]
[351958463,1738861846297,-500.0,0.00017395,2]
[351958465,1738861846308,-1002.74,0.00017395,2]
[351958467,1738861846318,-692.54,0.00017395,2]
[351958468,1738861846328,-303.77324096,0.00017395,2]
[351958469,1738861846338,-500.0,0.00017395,2]
[351958470,1738861846349,-500.0,0.00017395,2]
[351958471,1738861846359,-738.1,0.00017395,2]
[351958472,1738861846370,-500.0,0.00017395,2]
[351958473,1738861846380,-307.34831227,0.00017395,2]
[351958474,1738861846390,-595.37,0.00017395,2]
[351958475,1738861846399,-500.0,0.00017395,2]
[351958476,1738861846410,-500.0,0.00017395,2]
[351958477,1738861846419,-863.61,0.00017395,2]
[351958478,1738861846430,-645.84,0.00017395,2]
[351958479,1738861846439,-596.44,0.00017395,2]
[351958480,1738861846449,-500.0,0.00017395,2]
[351958481,1738861846459,-800.76,0.00017395,2]
[351958482,1738861846468,-500.0,0.00017395,2]
[351958483,1738861846478,-777.26,0.00017395,2]
[351958484,1738861846488,-500.0,0.00017395,2]
[351958485,1738861846499,-500.0,0.00017395,2]
[351958487,1738861846510,-548.07,0.00017395,2]
[351958489,1738861846520,-500.0,0.00017395,2]
[351958492,1738861846531,-500.0,0.00017395,2]
[351958494,1738861846541,-500.0,0.00017395,2]
[351958495,1738861846551,-500.0,0.00017395,2]
[351958496,1738861846561,-501.48962978,0.00017395,2]
[351958497,1738861846571,-672.55,0.00017395,2]
[351958498,1738861846581,-500.0,0.00017395,2]
[351958499,1738861846590,-500.0,0.00017395,2]
[351958500,1738861846600,-500.0,0.00017395,2]
[351958501,1738861846610,-874.6,0.00017395,2]
[351958502,1738861846620,-500.0,0.00017395,2]
[351958503,1738861846629,-500.0,0.00017395,2]
[351958504,1738861846638,-642.87,0.00017395,2]
[351958505,1738861846648,-607.11,0.00017395,2]
[351958506,1738861846657,-500.0,0.00017395,2]
[351958507,1738861846667,-500.0,0.00017395,2]
[351958508,1738861846677,-500.0,0.00017395,2]
[351958509,1738861846688,-500.0,0.00017395,2]
[351958510,1738861846699,-1058.07,0.00017395,2]
[351958511,1738861846710,-500.0,0.00017395,2]
[351958512,1738861846720,-2325.74,0.00017395,2]
[351958513,1738861846730,-577.77,0.00017395,2]
[351958514,1738861846740,-500.0,0.00017395,2]
[351958515,1738861846751,-590.56542692,0.00017395,2]
[351958516,1738861846760,-500.0,0.00017395,2]
[351958517,1738861846771,-500.0,0.00017395,2]
[351958518,1738861846780,-500.0,0.00017395,2]
[351958519,1738861846790,-500.0,0.00017395,2]
[351958520,1738861846800,-910.94,0.00017395,2]
[351958521,1738861846810,-500.0,0.00017395,2]
[351958522,1738861846821,-500.0,0.00017395,2]
[351958523,1738861846832,-493.44091216,0.00017395,2]
[351958524,1738861846842,-589.83,0.00017395,2]
[351958525,1738861846851,-500.0,0.00017395,2]
[351958526,1738861846860,-500.0,0.00017395,2]
[351958527,1738861846869,-500.0,0.00017395,2]
[351958528,1738861846878,-785.95,0.00017395,2]
[351958529,1738861846888,-812.17,0.00017395,2]
[351958530,1738861846897,-500.0,0.00017395,2]
[351958531,1738861846907,-500.0,0.00017395,2]
[351958532,1738861846916,-525.68540556,0.00017395,2]
[351958533,1738861846925,-970.04,0.00017395,2]
[351958534,1738861846934,-192.33,0.00017395,2]
[351958535,1738861846943,-500.0,0.00017395,2]
[351958536,1738861846950,-550.87,0.00017395,2]
[351958537,1738861846959,-500.0,0.00017395,2]
[351958538,1738861846967,-500.0,0.00017395,2]
[351958539,1738861846974,-500.0,0.00017395,2]
[351958540,1738861846983,-622.89,0.00017395,2]
[351958541,1738861846991,-940.72,0.00017395,2]
[351958542,1738861846999,-500.0,0.00017395,2]
[351958543,1738861847007,-500.0,0.00017395,2]
[351958544,1738861847013,-527.23,0.00017395,2]
[351958545,1738861847021,-687.44,0.00017395,2]
[351958546,1738861847029,-500.0,0.00017395,2]
[351958547,1738861847036,-865.53,0.00017395,2]
[351958548,1738861847043,-646.69,0.00017395,2]
[351958549,1738861847050,-500.0,0.00017395,2]
[351958550,1738861847057,-500.0,0.00017395,2]
[351958551,1738861847066,-500.0,0.00017395,2]
[351958552,1738861847076,-1138.12,0.00017395,2]
[351958553,1738861847085,-500.0,0.00017395,2]
[351958554,1738861847095,-1066.17,0.00017395,2]
[351958555,1738861847106,-500.0,0.00017395,2]
[351958556,1738861847116,-500.0,0.00017395,2]
[351958557,1738861847127,-500.0,0.00017395,2]
[351958558,1738861847136,-500.0,0.00017395,2]
[351958559,1738861847147,-1133.21,0.00017395,2]
[351958560,1738861847157,-1379.38,0.00017395,2]
[351958561,1738861847166,-1088.33,0.00017395,2]
[351958562,1738861847176,-500.0,0.00017395,2]
[351958563,1738861847186,-2580.85,0.00017395,2]
[351958564,1738861847196,-500.0,0.00017395,2]
[351958565,1738861847206,-507.71,0.00017395,2]
[351958566,1738861847216,-570.24,0.00017395,2]
[351958567,1738861847227,-500.0,0.00017395,2]
[351958568,1738861847237,-829.91,0.00017395,2]
[351958569,1738861847247,-500.0,0.00017395,2]
[351958570,1738861847258,-500.0,0.00017395,2]
[351958571,1738861847271,-501.42,0.00017395,2]
[351958572,1738861847281,-1418.09,0.00017395,2]
[351958573,1738861847292,-699.42,0.00017395,2]
[351958574,1738861847303,-500.0,0.00017395,2]
[351958575,1738861847313,-540.53,0.00017395,2]
[351958576,1738861847324,-1474.87,0.00017395,2]
[351958577,1738861847334,-953.52,0.00017395,2]
[351958578,1738861847345,-500.0,0.00017395,2]
[351958579,1738861847355,-500.0,0.00017395,2]
[351958580,1738861847365,-902.61,0.00017395,2]
[351958581,1738861847379,-500.0,0.00017395,2]
[351958582,1738861847389,-507.04939696,0.00017395,2]
[351958583,1738861847399,-1661.17,0.00017395,2]
[351958584,1738861847408,-1847.77,0.00017395,2]
[351958585,1738861847418,-500.0,0.00017395,2]
[351958586,1738861847426,-1733.71,0.00017395,2]
[351958587,1738861847436,-625.07,0.00017395,2]
[351958588,1738861847446,-667.58,0.00017395,2]
[351958589,1738861847455,-1416.66,0.00017395,2]
[351958590,1738861847466,-500.0,0.00017395,2]
[351958591,1738861847476,-500.0,0.00017395,2]
[351958592,1738861847486,-1420.72,0.00017395,2]
[351958593,1738861847496,-1568.96,0.00017395,2]
[351958594,1738861847506,-672.97,0.00017395,2]
[351958595,1738861847515,-843.46,0.00017395,2]
[351958596,1738861847525,-1370.61,0.00017395,2]
[351958597,1738861847535,-500.0,0.00017395,2]
[351958598,1738861847545,-500.0,0.00017395,2]
[351958599,1738861847555,-753.37,0.00017395,2]
[351958600,1738861847565,-1322.14,0.00017395,2]
[351958601,1738861847576,-2840.59,0.00017395,2]
[351958602,1738861847587,-500.0,0.00017395,2]
[351958603,1738861847598,-521.51,0.00017395,2]
[351958604,1738861847611,-500.0,0.00017395,2]
[351958605,1738861847625,-3947.98,0.00017395,2]
[351958606,1738861847635,-1271.81,0.00017395,2]
[351958607,1738861847645,-708.72,0.00017395,2]
[351958608,1738861847655,-791.7,0.00017395,2]
[351958609,1738861847665,-500.0,0.00017395,2]
[351958610,1738861847674,-1069.89,0.00017395,2]
[351958611,1738861847684,-1042.41,0.00017395,2]
[351958612,1738861847693,-957.73,0.00017395,2]
[351958613,1738861847702,-1606.61,0.00017395,2]
[351958614,1738861847711,-1571.35,0.00017395,2]
[351958615,1738861847720,-500.0,0.00017395,2]
[351958616,1738861847730,-519.25,0.00017395,2]
[351958617,1738861847739,-236.62981147,0.00017395,2]
[351958618,1738861847748,-1542.73,0.00017395,2]
[351958619,1738861847757,-692.64,0.00017395,2]
[351958620,1738861847766,-657.02,0.00017395,2]
[351958621,1738861847775,-584.58,0.00017395,2]
[351958622,1738861847784,-500.0,0.00017395,2]
[351958623,1738861847793,-1586.74,0.00017395,2]
[351958624,1738861847803,-578.78,0.00017395,2]
[351958625,1738861847812,-1730.87,0.00017395,2]
[351958626,1738861847821,-500.0,0.00017395,2]
[351958627,1738861847831,-681.25,0.00017395,2]
[351958628,1738861847840,-500.0,0.00017395,2]
[351958629,1738861847850,-500.0,0.00017395,2]
[351958630,1738861847859,-682.56,0.00017395,2]
[351958631,1738861847868,-500.0,0.00017395,2]
[351958632,1738861847877,-1123.68,0.00017395,2]
[351958633,1738861847948,-500.0,0.00017395,2]
[351958634,1738861847958,-500.0,0.00017395,2]
[351958635,1738861847969,-500.0,0.00017395,2]
[351958636,1738861847979,-839.75,0.00017395,2]
[351958637,1738861847990,-1377.35,0.00017395,2]
[351958638,1738861848000,-1194.33,0.00017395,2]
[351958639,1738861848009,-500.0,0.00017395,2]
[351958640,1738861848019,-742.25,0.00017395,2]
[351958641,1738861848029,-528.18,0.00017395,2]
[351958642,1738861848040,-2239.71,0.00017395,2]
[351958643,1738861848051,-729.85,0.00017395,2]
[351958644,1738861848062,-500.0,0.00017395,2]
[351958645,1738861848072,-1212.61,0.00017395,2]
[351958646,1738861848081,-500.0,0.00017395,2]
[351958647,1738861848091,-514.18,0.00017395,2]